bitfinex-derivatives/quotes_SOLF0:USTF0_20260210
["timestamp","ask_amount","ask_price","bid_price","bid_amount"]
[1770681602833,4.85318326,86.833,86.699,5.29421019]
[1770681603734,10.3784,86.773,86.7,5.23528475]
[1770681603935,4.85318326,86.824,86.7,5.23528475]
[1770681605736,10.3771,86.784,86.714,5.23528475]
[1770681606136,4.85318326,86.801,86.714,5.23528475]
[1770681607735,10.3752,86.799,86.729,10.3835]
[1770681607938,4.85318326,86.798,86.73,5.23528475]
[1770681608740,10.3755,86.796,86.73,5.23528475]
[1770681609635,4.85318326,86.798,86.73,5.23528475]
[1770681610436,8.28765513,86.797,86.73,5.23528475]
[1770681610641,8.28765513,86.796,86.73,5.23528475]
[1770681610840,8.28765513,86.795,86.733,5.23528475]
[1770681611036,8.28777356,86.797,86.733,5.23528475]
[1770681611339,4.85318326,86.815,86.733,5.23528475]
[1770681611533,4.85318326,86.813,86.733,5.23528475]
[1770681611734,4.85318326,86.811,86.733,5.23528475]
[1770681611937,4.85318326,86.809,86.733,5.23528475]
[1770681612142,4.85318326,86.807,86.733,5.23528475]
[1770681612330,4.85318326,86.806,86.733,5.23528475]
[1770681612733,4.85318326,86.806,86.736,5.23528475]
[1770681613342,4.85318326,86.804,86.714,5.23528475]
[1770681613642,4.85318326,86.802,86.714,5.23528475]
[1770681613842,4.85318326,86.8,86.714,5.23528475]
[1770681614140,4.85318326,86.798,86.714,5.23528475]
[1770681614335,4.85318326,86.796,86.714,5.23528475]
[1770681614530,4.85318326,86.794,86.714,5.23528475]
[1770681614730,4.85318326,86.789,86.714,5.23528475]
[1770681614930,4.85318326,86.787,86.714,5.23528475]
[1770681615134,4.85318326,86.799,86.714,5.23528475]
[1770681615333,4.85318326,86.799,86.729,5.23528475]
[1770681615534,4.85318326,86.826,86.729,5.23528475]
[1770681615730,4.85318326,86.824,86.729,5.23528475]
[1770681615941,14.2086943,86.869,86.684,182.3835]
[1770681615942,4.85318326,86.82,86.741,5.23528475]
[1770681616242,4.85318326,86.818,86.741,5.23528475]
[1770681616442,4.85318326,86.816,86.741,5.23528475]
[1770681616742,4.85318326,86.814,86.741,5.23528475]
[1770681616942,4.85318326,86.812,86.741,5.23528475]
[1770681617139,4.85318326,86.81,86.741,5.23528475]
[1770681617340,4.85318326,86.808,86.741,5.23528475]
[1770681617542,4.85318326,86.807,86.741,5.23528475]
[1770681617839,8.28777356,86.83,86.741,5.23528475]
[1770681618039,4.85318326,86.828,86.763,5.23528475]
[1770681618539,161.2409,86.881,86.763,5.23528475]
[1770681618540,4.85318326,86.817,86.763,5.23528475]
[1770681618936,4.85318326,86.856,86.763,5.23528475]
[1770681619139,4.85318326,86.854,86.763,5.23528475]
[1770681619342,4.85318326,86.852,86.763,5.23528475]
[1770681619539,4.60225751,86.85,86.763,5.23528475]
[1770681619737,21.3127143,86.899,86.763,5.23528475]
[1770681619738,10.372,86.826,86.763,5.23528475]
[1770681620943,10.3727,86.82,86.763,5.23528475]
[1770681621133,4.60225751,86.825,86.763,5.23528475]
[1770681621537,4.60225751,86.807,86.763,5.23528475]
[1770681628946,4.91361007,86.818,86.763,5.23528475]
[1770681634753,4.90422511,86.801,86.734,4.77711004]
[1770681635558,4.89425497,86.795,86.734,4.77711004]
[1770681637154,4.83009623,86.793,86.734,4.77711004]
[1770681638052,4.81998253,86.821,86.734,4.77711004]
[1770681638258,4.81032887,86.819,86.734,4.77711004]
[1770681639656,4.81032887,86.819,86.757,4.77711004]
[1770681643055,4.90362153,86.833,86.757,4.77711004]
[1770681643257,4.89448473,86.831,86.757,4.77711004]
[1770681643556,4.89448473,86.831,86.763,4.77711004]
[1770681644564,8.28177103,86.83,86.763,4.77711004]
[1770681644864,4.89448473,86.831,86.766,4.77711004]
[1770681645066,4.72610489,86.829,86.766,4.77711004]
[1770681645665,4.72610489,86.829,86.769,4.77711004]
[1770681646766,4.72610489,86.829,86.772,4.77711004]
[1770681647066,4.75887656,86.845,86.772,4.77711004]
[1770681647262,4.75016202,86.858,86.772,4.77711004]
[1770681647468,8.28713852,86.857,86.772,4.77711004]
[1770681647765,4.75016202,86.858,86.772,4.77711004]
[1770681647961,8.24918745,86.857,86.772,4.77711004]
[1770681648266,4.75016202,86.858,86.799,4.77711004]
[1770681650565,4.75016202,86.858,86.806,4.65424331]
[1770681650962,8.24402874,86.867,86.806,4.65424331]
[1770681651158,8.24402874,86.866,86.806,4.65424331]
[1770681651463,14.2086943,86.912,86.751,161.481]
[1770681651464,4.45638333,86.886,86.818,4.65424331]
[1770681651659,4.45638333,86.884,86.818,4.65424331]
[1770681651869,4.45638333,86.882,86.822,4.65424331]
[1770681652070,4.45638333,86.88,86.762,4.65424331]
[1770681652271,4.45638333,86.878,86.762,4.65424331]
[1770681652473,4.45638333,86.873,86.803,4.65424331]
[1770681652672,4.45638333,86.871,86.803,4.65424331]
[1770681652873,4.45638333,86.87,86.803,4.65424331]
[1770681653074,4.45638333,86.868,86.803,4.65424331]
[1770681653773,4.45638333,86.868,86.805,4.65424331]
[1770681654769,4.45638333,86.868,86.81,4.65424331]
[1770681655675,4.45638333,86.868,86.812,4.65424331]
[1770681661670,4.45638333,86.868,86.732,28.6472787]
[1770681661671,4.45638333,86.868,86.748,4.65424331]
[1770681661874,4.45638333,86.866,86.748,4.65424331]
[1770681662075,4.45638333,86.864,86.748,4.65424331]
[1770681662278,4.45638333,86.862,86.748,4.65424331]
[1770681662580,4.45638333,86.86,86.748,4.65424331]
[1770681662780,4.45638333,86.855,86.776,4.65424331]
[1770681663370,4.45638333,86.855,86.791,4.65424331]
[1770681665284,4.45638333,86.854,86.791,4.65424331]
[1770681665784,4.45638333,86.852,86.791,4.65424331]
[1770681671382,4.45638333,86.852,86.793,4.65424331]
[1770681671582,4.45638333,86.85,86.793,4.65424331]
[1770681671978,4.45638333,86.848,86.793,4.65424331]
[1770681672576,4.45638333,86.848,86.739,34.6]
[1770681672577,4.45638333,86.848,86.795,4.65424331]
[1770681673883,14.2086943,86.88,86.733,20.7661]
[1770681673884,4.45638333,86.845,86.784,10.3769]
[1770681674092,4.45638333,86.843,86.784,15.03114331]
[1770681674494,10.6563571,86.861,86.784,4.65424331]
[1770681674495,4.45638333,86.839,86.784,4.65424331]
[1770681676182,4.45638333,86.838,86.784,4.65424331]
[1770681679701,4.45638333,86.838,86.787,4.81620694]
[1770681690798,4.55398027,86.835,86.787,4.81620694]
[1770681691599,4.54867305,86.824,86.776,4.47562322]
[1770681692505,4.54367459,86.836,86.776,4.47562322]
[1770681692895,4.55654482,86.833,86.776,4.47562322]
[1770681693699,10.3716,86.829,86.776,4.47562322]
[1770681696006,4.55654482,86.833,86.776,4.47562322]
[1770681696707,10.3742,86.808,86.776,4.47562322]
[1770681699206,10.3757,86.795,86.746,14.29875793]
[1770681699405,10.3757,86.795,86.745,14.29875793]
[1770681700005,10.3757,86.795,86.741,14.29875793]
[1770681700205,10.3757,86.795,86.74,14.29875793]
[1770681701106,10.3757,86.795,86.741,4.47562322]
[1770681701607,10.3774,86.781,86.741,4.47562322]
[1770681703609,10.3762,86.791,86.741,4.47562322]
[1770681707411,10.3748,86.803,86.745,4.47562322]
[1770681707606,4.71560602,86.812,86.745,4.47562322]
[1770681707811,4.71560602,86.812,86.757,14.29875793]
[1770681708012,4.71560602,86.855,86.761,4.47562322]
[1770681708206,4.71560602,86.855,86.762,4.47562322]
[1770681708410,4.71560602,86.855,86.765,4.47562322]
[1770681708613,4.71560602,86.838,86.769,4.47562322]
[1770681709011,4.71560602,86.838,86.77,4.47562322]
[1770681709211,4.71560602,86.838,86.769,14.34277127]
[1770681709212,4.71560602,86.851,86.771,4.47562322]
[1770681709408,4.71560602,86.851,86.773,4.47562322]
[1770681709909,4.71560602,86.851,86.774,4.29130823]
[1770681710515,10.3697,86.845,86.791,4.29130823]
[1770681710815,4.65981391,86.863,86.796,4.29130823]
[1770681711115,4.65981391,86.875,86.798,4.29130823]
[1770681711814,4.65981391,86.874,86.801,4.29130823]
[1770681712814,4.65981391,86.874,86.805,4.29130823]
[1770681713302,4.65981391,86.874,86.746,28.68554254]
[1770681713303,4.65981391,86.874,86.809,4.29130823]
[1770681713908,4.65981391,86.872,86.813,4.29130823]
[1770681714600,4.65981391,86.87,86.813,4.29130823]
[1770681714802,4.65981391,86.87,86.798,10.3752]
[1770681715003,4.65981391,86.87,86.799,4.29130823]
[1770681715614,4.65981391,86.85,86.799,4.29130823]
[1770681718019,4.65981391,86.848,86.799,4.29130823]
[1770681721022,4.65981391,86.843,86.779,4.29130823]
[1770681721713,4.65981391,86.831,86.765,4.29130823]
[1770681722920,4.65981391,86.827,86.765,4.29130823]
[1770681723723,4.65981391,86.824,86.765,4.29130823]
[1770681724917,4.65981391,86.836,86.767,4.29130823]
[1770681726420,4.65981391,86.847,86.767,4.29130823]
[1770681727614,10.3699,86.843,86.767,4.29130823]
[1770681727817,4.65981391,86.842,86.767,4.29130823]
[1770681728618,4.65981391,86.835,86.767,4.29130823]
[1770681729817,4.65981391,86.827,86.767,4.29130823]
[1770681731119,4.65981391,86.825,86.767,4.29130823]
[1770681732427,4.65981391,86.825,86.768,4.29130823]
[1770681733625,20.7304,86.883,86.768,4.29130823]
[1770681733626,4.65981391,86.823,86.768,4.29130823]
[1770681734925,4.65981391,86.819,86.768,4.29130823]
[1770681739627,10.3727,86.82,86.772,4.51133265]
[1770681741839,14.48127732,86.82,86.772,4.51133265]
[1770681742135,10.373,86.818,86.772,4.51133265]
[1770681742638,4.10857732,86.817,86.772,4.51133265]
[1770681749739,4.10857732,86.817,86.776,4.30751671]
[1770681750838,4.10857732,86.817,86.778,4.30751671]
[1770681755646,4.10857732,86.817,86.779,10.3775]
[1770681755844,4.10857732,86.817,86.779,14.68501671]
[1770681756441,4.10857732,86.817,86.78,4.30751671]
[1770681759354,4.10857732,86.817,86.781,14.68481671]
[1770681759542,4.10857732,86.817,86.782,4.30751671]
[1770681761253,4.10857732,86.817,86.772,10.3783]
[1770681761455,4.10857732,86.817,86.766,4.30751671]
[1770681762451,4.10857732,86.817,86.768,4.30751671]
[1770681763454,4.10857732,86.817,86.769,4.30751671]
[1770681763855,4.10857732,86.817,86.777,4.30751671]
[1770681768258,10.72315738,86.844,86.777,4.30751671]
[1770681768259,4.10857732,86.833,86.779,4.30751671]
[1770681768460,4.10857732,86.833,86.788,4.30751671]
[1770681769258,4.10857732,86.833,86.792,10.376]
[1770681773665,4.10857732,86.833,86.788,4.30751671]
[1770681778756,4.00444226,86.832,86.776,4.20650445]
[1770681779664,4.00444226,86.821,86.766,4.20650445]
[1770681780763,4.00444226,86.819,86.766,4.20650445]
[1770681781765,4.00444226,86.819,86.768,4.20650445]
[1770681782859,4.00444226,86.819,86.769,4.20650445]
[1770681783462,4.00444226,86.844,86.769,4.20650445]
[1770681783665,4.00444226,86.844,86.778,4.20650445]
[1770681784159,4.00444226,86.844,86.779,4.20650445]
[1770681784357,4.00444226,86.84,86.779,4.20650445]
[1770681784558,4.00444226,86.84,86.784,4.20650445]
[1770681784755,4.00444226,86.84,86.788,4.20650445]
[1770681792275,4.00444226,86.84,86.789,4.20650445]
[1770681794070,4.00444226,86.84,86.791,4.20650445]
[1770681795871,4.00444226,86.851,86.793,4.20650445]
[1770681796168,4.00444226,86.851,86.803,4.20650445]
[1770681802863,4.00444226,86.851,86.805,4.25436848]
[1770681803882,3.8584686,86.853,86.815,4.25436848]
[1770681804677,3.8584686,86.853,86.804,4.25436848]
[1770681805378,3.8584686,86.853,86.796,10.3754]
[1770681807280,3.8584686,86.853,86.801,4.25436848]
[1770681808077,3.8584686,86.864,86.803,4.25436848]
[1770681809778,3.8584686,86.864,86.81,4.25436848]
[1770681814583,3.8584686,86.862,86.81,4.25436848]
[1770681815585,10.368,86.86,86.81,4.25436848]
[1770681815781,3.8584686,86.859,86.81,4.25436848]
[1770681816080,3.8584686,86.88,86.823,4.25436848]
[1770681816389,3.8584686,86.878,86.823,4.25436848]
[1770681816783,3.8584686,86.876,86.823,4.25436848]
[1770681817182,3.8584686,86.876,86.813,4.25436848]
[1770681818686,3.8584686,86.868,86.813,4.25436848]
[1770681819679,3.8584686,86.868,86.814,4.25436848]
[1770681824986,3.8584686,86.865,86.814,4.25436848]
[1770681825687,3.8584686,86.865,86.797,4.25436848]
[1770681826189,3.8584686,86.852,86.797,4.25436848]
[1770681828291,3.8584686,86.852,86.798,10.3752]
[1770681828491,3.8584686,86.852,86.799,4.25436848]
[1770681829197,3.8584686,86.852,86.758,34.6]
[1770681829198,3.8584686,86.852,86.802,4.25436848]
[1770681829808,3.8635775,86.876,86.805,3.87655546]
[1770681830697,3.8635775,86.873,86.819,3.87655546]
[1770681831298,3.8635775,86.873,86.793,14.34277127]
[1770681831493,3.8635775,86.873,86.797,3.87655546]
[1770681831694,3.8635775,86.859,86.797,3.87655546]
[1770681832797,3.8635775,86.851,86.797,3.87655546]
[1770681834286,3.8635775,86.849,86.797,3.87655546]
[1770681836499,3.8635775,86.847,86.797,3.87655546]
[1770681840500,3.8635775,86.845,86.787,14.34277127]
[1770681840701,3.8635775,86.845,86.785,3.87655546]
[1770681841799,3.8635775,86.843,86.785,3.87655546]
[1770681842401,3.8635775,86.838,86.786,10.3767]
[1770681843002,3.8635775,86.838,86.786,14.25325546]
[1770681843899,3.8635775,86.838,86.774,3.87655546]
[1770681844103,3.8635775,86.838,86.733,28.68554254]
[1770681844104,3.8635775,86.838,86.746,14.34277127]
[1770681844406,10.3738,86.811,86.742,3.87655546]
[1770681844699,3.8635775,86.81,86.731,14.25975546]
[1770681844894,3.8635775,86.81,86.731,3.87655546]
[1770681845093,3.8635775,86.782,86.71,3.87655546]
[1770681845706,3.8635775,86.768,86.697,3.87655546]
[1770681846200,3.8635775,86.768,86.683,10.389]
[1770681846201,3.8635775,86.768,86.683,3.87655546]
[1770681846702,3.8635775,86.754,86.683,3.87655546]
[1770681848103,3.8635775,86.749,86.683,3.87655546]
[1770681848502,3.8635775,86.762,86.702,3.87655546]
[1770681849302,3.8635775,86.762,86.706,3.87655546]
[1770681849498,14.2086943,86.845,86.706,3.87655546]
[1770681849499,3.8635775,86.829,86.706,3.87655546]
[1770681849895,3.8635775,86.804,86.719,3.87655546]
[1770681850700,3.8635775,86.802,86.72,3.87655546]
[1770681851204,3.8635775,86.797,86.72,3.87655546]
[1770681852602,3.8635775,86.772,86.72,3.87655546]
[1770681853502,3.8635775,86.768,86.706,3.87655546]
[1770681853809,3.8635775,86.759,86.706,3.87655546]
[1770681854009,3.8635775,86.759,86.711,3.87655546]
[1770681855007,3.8635775,86.759,86.71,3.40401107]
[1770681855207,3.8635775,86.759,86.701,3.87655546]
[1770681855408,3.8635775,86.759,86.71,3.40401107]
[1770681856011,3.8635775,86.759,86.711,3.87655546]
[1770681856309,3.8635775,86.759,86.72,3.40401107]
[1770681856510,3.8635775,86.775,86.73,3.40401107]
[1770681858109,161.3456,86.825,86.62,161.7241]
[1770681858110,3.8635775,86.769,86.71,3.40401107]
[1770681858306,161.3456,86.825,86.71,3.40401107]
[1770681858307,3.8635775,86.759,86.71,3.40401107]
[1770681858513,3.8635775,86.749,86.691,3.87655546]
[1770681858709,3.8635775,86.749,86.7,3.40401107]
[1770681858910,3.8635775,86.749,86.701,3.87655546]
[1770681859911,4.02228628,86.748,86.701,3.87655546]
[1770681861104,10.3816,86.746,86.701,3.87655546]
[1770681865321,4.02228628,86.748,86.701,3.87655546]
[1770681869123,3.92938166,86.761,86.704,4.1119771]
[1770681872524,9.11807485,86.78,86.704,4.1119771]
[1770681872525,3.92938166,86.758,86.704,4.1119771]
[1770681874226,3.92938166,86.751,86.69,4.1119771]
[1770681875722,14.31198166,86.738,86.69,4.1119771]
[1770681875926,3.92938166,86.737,86.69,4.1119771]
[1770681878726,3.89304516,86.737,86.69,4.1119771]
[1770681880922,10.3828,86.736,86.691,4.1119771]
[1770681881130,3.89304516,86.737,86.691,4.1119771]
[1770681881131,3.92938166,86.735,86.691,4.1119771]
[1770681882734,3.92938166,86.733,86.691,4.1119771]
[1770681885634,3.92938166,86.731,86.691,4.1119771]
[1770681885830,3.92938166,86.731,86.69,3.4048898]
[1770681886034,14.2086943,86.788,86.678,4.1119771]
[1770681886035,3.92938166,86.729,86.68,3.4048898]
[1770681886235,3.92938166,86.729,86.681,4.1119771]
[1770681886934,10.3843,86.723,86.681,4.1119771]
[1770681888138,14.31368166,86.723,86.681,4.1119771]
[1770681888335,10.3853,86.715,86.681,4.1119771]
[1770681888535,20.7581,86.767,86.66,3.4048898]
[1770681888536,3.92938166,86.709,86.66,3.4048898]
[1770681889437,4.05119484,86.704,86.66,3.4048898]
[1770681890247,10.3879,86.693,86.65,3.4048898]
[1770681890437,10.3879,86.693,86.651,4.0675813]
[1770681890838,4.05119484,86.687,86.64,3.4048898]
[1770681892045,4.05119484,86.685,86.64,3.4048898]
[1770681892249,4.05119484,86.679,86.62,3.4048898]
[1770681892735,4.05119484,86.662,86.61,3.4048898]
[1770681892938,172.253799,86.717,86.61,3.4048898]
[1770681892939,4.05119484,86.659,86.61,3.4048898]
[1770681893838,3.4048898,86.66,86.61,7.4724711]
[1770681893839,14.44369484,86.655,86.61,7.4724711]
[1770681894233,4.05119484,86.654,86.61,7.4724711]
[1770681894434,4.05119484,86.649,86.61,4.0675813]
[1770681894637,4.05119484,86.649,86.596,4.0675813]
[1770681895243,3.4048898,86.64,86.596,4.0675813]
[1770681895439,4.05119484,86.639,86.596,4.0675813]
[1770681895846,10.3949,86.635,86.596,4.0675813]
[1770681896750,10.3936,86.646,86.601,4.0675813]
[1770681897357,4.05119484,86.653,86.601,4.0675813]
[1770681897358,10.3948,86.636,86.601,4.0675813]
[1770681897857,4.05119484,86.649,86.601,4.0675813]
[1770681898653,4.05119484,86.649,86.591,4.0675813]
[1770681898954,4.05119484,86.646,86.591,4.0675813]
[1770681899552,3.4048898,86.64,86.591,4.0675813]
[1770681899745,4.05119484,86.639,86.591,4.0675813]
[1770681901453,4.05119484,86.639,86.56,2.00880874]
[1770681901454,4.05119484,86.639,86.601,4.0675813]
[1770681906655,4.05119484,86.639,86.59,3.4048898]
[1770681906850,4.05119484,86.633,86.582,4.0675813]
[1770681907048,4.05119484,86.629,86.582,4.0675813]
[1770681907452,4.05119484,86.64,86.591,4.0675813]
[1770681907858,4.05119484,86.64,86.6,3.4048898]
[1770681908061,4.05119484,86.64,86.6,7.4724711]
[1770681908761,10.3933,86.648,86.61,7.4724711]
[1770681908963,10.3933,86.648,86.611,4.0675813]
[1770681909261,3.4048898,86.66,86.55,2.00906388]
[1770681909262,4.05119484,86.681,86.64,3.4048898]
[1770681909463,4.05119484,86.699,86.65,3.4048898]
[1770681909656,4.05119484,86.699,86.641,4.0675813]
[1770681909863,4.05119484,86.697,86.65,3.4048898]
[1770681910263,4.05119484,86.697,86.651,4.0675813]
[1770681911965,4.05119484,86.697,86.64,3.4048898]
[1770681912357,4.05119484,86.697,86.64,7.4724711]
[1770681912557,4.05119484,86.697,86.641,4.0675813]
[1770681912759,4.05119484,86.669,86.578,4.0675813]
[1770681912958,4.05119484,86.669,86.611,4.0675813]
[1770681913362,4.05119484,86.669,86.621,4.0675813]
[1770681913661,4.05119484,86.669,86.608,10.398]
[1770681913662,4.05119484,86.669,86.61,7.4724711]
[1770681913963,4.05119484,86.669,86.611,4.0675813]
[1770681914859,4.05119484,86.669,86.613,10.3974]
[1770681915064,4.05119484,86.669,86.621,4.0675813]
[1770681919065,4.05119484,86.669,86.561,161.8343]
[1770681919066,4.05119484,86.669,86.61,7.4724711]
[1770681919465,4.05119484,86.669,86.611,4.0675813]
[1770681919959,4.05119484,86.669,86.621,3.79192974]
[1770681920262,4.05119484,86.669,86.62,3.4048898]
[1770681920568,4.05119484,86.669,86.621,3.79192974]
[1770681924970,3.90850096,86.659,86.621,3.79192974]
[1770681926669,3.90850096,86.656,86.6,3.4048898]
[1770681927368,3.90850096,86.649,86.595,4.03641836]
[1770681927571,3.90850096,86.649,86.601,4.03641836]
[1770681927771,3.90850096,86.669,86.611,4.03641836]
[1770681928477,3.90850096,86.659,86.605,4.03641836]
[1770681929177,3.90850096,86.659,86.61,3.4048898]
[1770681929476,3.90850096,86.659,86.611,4.03641836]
[1770681929678,10.3921,86.658,86.611,4.03641836]
[1770681929878,3.90850096,86.659,86.611,4.03641836]
[1770681930481,3.90850096,86.673,86.621,4.03641836]
[1770681931281,3.90850096,86.673,86.578,21.5141569]
[1770681931282,3.90850096,86.659,86.611,4.03641836]
[1770681933285,3.90850096,86.649,86.597,4.03641836]
[1770681934774,3.90850096,86.648,86.597,4.03641836]
[1770681936783,3.90850096,86.648,86.601,4.03641836]
[1770681940788,14.2086943,86.699,86.59,3.4048898]
[1770681940789,3.90850096,86.639,86.59,7.44130816]
[1770681941188,3.90850096,86.639,86.591,4.03641836]
[1770681942990,3.90850096,86.629,86.581,4.03641836]
[1770681950491,3.90850096,86.629,86.553,21.5141569]
[1770681950492,3.97934791,86.616,86.557,3.80393623]
[1770681950682,20.781,86.671,86.508,1.89179439]
[1770681950683,3.97934791,86.629,86.581,3.80393623]
[1770681951086,10.3943,86.64,86.601,3.80393623]
[1770681951892,3.97934791,86.641,86.61,3.41330797]
[1770681952396,3.97934791,86.641,86.601,3.80393623]
[1770681953686,10.3931,86.65,86.55,58.18335997]
[1770681953687,10.3931,86.65,86.62,3.41330797]
[1770681954499,3.97934791,86.656,86.62,3.41330797]
[1770681956401,3.97934791,86.656,86.571,21.5141569]
[1770681956402,10.3907,86.67,86.631,3.80393623]
[1770681957698,3.97934791,86.679,86.631,3.80393623]
[1770681958696,3.97934791,86.677,86.631,3.80393623]
[1770681958901,3.97934791,86.677,86.613,3.80393623]
[1770681959093,3.97934791,86.669,86.611,3.80393623]
[1770681959596,3.97934791,86.657,86.611,3.80393623]
[1770681960101,3.97934791,86.657,86.62,3.41330797]
[1770681960603,3.97934791,86.657,86.621,3.80393623]
[1770681960795,3.97934791,86.672,86.63,3.41330797]
[1770681962106,3.97934791,86.672,86.631,3.80393623]
[1770681962307,3.97934791,86.672,86.64,3.41330797]
[1770681962495,3.97934791,86.672,86.631,3.80393623]
[1770681962798,3.97934791,86.687,86.633,3.80393623]
[1770681962991,3.97934791,86.709,86.651,3.80393623]
[1770681963196,3.97934791,86.709,86.67,3.41330797]
[1770681963600,3.97934791,86.709,86.661,3.80393623]
[1770681965698,3.97934791,86.709,86.67,3.41330797]
[1770681965897,3.97934791,86.729,86.69,3.41330797]
[1770681966097,312.34361247,86.739,86.691,3.80393623]
[1770681966404,312.34361247,86.739,86.7,3.41330797]
[1770681966605,3.97934791,86.743,86.7,3.41330797]
[1770681967508,3.97934791,86.743,86.701,3.80393623]
[1770681970907,3.97934791,86.743,86.71,3.41330797]
[1770681971513,3.97934791,86.743,86.701,3.80393623]
[1770681971812,3.97934791,86.743,86.691,10.388]
[1770681972317,3.97934791,86.743,86.69,3.41330797]
[1770681972812,3.97934791,86.729,86.68,13.80260797]
[1770681974012,3.97934791,86.729,86.68,17.6065442]
[1770681974210,3.97934791,86.729,86.681,3.80393623]
[1770681975917,10.3809,86.751,86.7,7.2172442]
[1770681975918,3.97934791,86.745,86.7,7.2172442]
[1770681976329,10.382,86.743,86.7,7.2172442]
[1770681976525,3.97934791,86.742,86.7,7.2172442]
[1770681976724,3.97934791,86.742,86.7,3.80393623]
[1770681977924,3.97934791,86.742,86.69,3.41330797]
[1770681978328,3.97934791,86.742,86.691,3.80393623]
[1770681979821,3.97934791,86.742,86.7,3.41330797]
[1770681980534,3.97934791,86.742,86.691,3.80393623]
[1770681981420,3.72708303,86.755,86.711,4.00274524]
[1770681983827,3.41330797,86.76,86.7,3.41330797]
[1770681983828,3.72708303,86.754,86.7,3.41330797]
[1770681984037,3.72708303,86.749,86.695,4.00274524]
[1770681986230,3.41330797,86.75,86.695,4.00274524]
[1770681986231,3.72708303,86.747,86.695,4.00274524]
[1770681986422,3.72708303,86.739,86.682,4.00274524]
[1770681987128,3.72708303,86.739,86.684,4.00274524]
[1770681987636,3.72708303,86.739,86.64,34.66]
[1770681987637,3.72708303,86.739,86.691,4.00274524]
[1770681988731,3.72708303,86.739,86.692,10.3879]
[1770681989632,3.72708303,86.739,86.692,14.39064524]
[1770681989833,3.72708303,86.739,86.693,4.00274524]
[1770681991731,3.72708303,86.737,86.693,4.00274524]
[1770681995552,3.72708303,86.735,86.693,4.00274524]
[1770681995942,3.72708303,86.719,86.676,4.00274524]
[1770681996736,3.72708303,86.715,86.676,4.00274524]
[1770682005448,10.3854,86.714,86.676,4.00274524]
[1770682012042,3.72708303,86.715,86.676,4.00274524]
[1770682015652,10.385,86.717,86.676,4.00274524]
[1770682019155,3.85311773,86.726,86.681,3.85466317]
[1770682021063,3.85311773,86.718,86.681,3.85466317]
[1770682021371,3.85311773,86.709,86.658,3.85466317]
[1770682021658,21.37114217,86.743,86.658,3.85466317]
[1770682021659,3.85311773,86.699,86.658,3.85466317]
[1770682026164,3.85311773,86.697,86.642,3.85466317]
[1770682026466,3.85311773,86.679,86.629,3.85466317]
[1770682026665,3.85311773,86.679,86.61,21.5141569]
[1770682026666,3.85311773,86.659,86.616,3.85466317]
[1770682028762,3.85311773,86.673,86.62,7.26089714]
[1770682028961,3.85311773,86.673,86.621,3.85466317]
[1770682029871,3.85311773,86.673,86.62,3.40623397]
[1770682029872,3.85311773,86.673,86.623,3.85466317]
[1770682038376,3.85311773,86.673,86.631,3.85466317]
[1770682041593,3.84287197,86.686,86.641,4.03660744]
[1770682041783,3.84287197,86.681,86.641,4.03660744]
[1770682041983,3.40623397,86.68,86.641,4.03660744]
[1770682042190,3.84287197,86.679,86.641,4.03660744]
[1770682042584,3.84287197,86.679,86.631,4.03660744]
[1770682051301,3.84287197,86.679,86.583,21.5141569]
[1770682051302,3.40623397,86.67,86.618,4.03660744]
[1770682051509,3.84287197,86.649,86.603,4.03660744]
[1770682053003,3.84287197,86.639,86.588,4.03660744]
[1770682053206,3.84287197,86.629,86.57,3.40623397]
[1770682053409,3.84287197,86.629,86.571,4.03660744]
[1770682053904,3.84287197,86.629,86.581,4.03660744]
[1770682060707,3.84287197,86.624,86.581,4.03660744]
[1770682061704,10.3967,86.62,86.581,4.03660744]
[1770682062015,10.3967,86.62,86.513,291.0]
[1770682062016,3.84287197,86.619,86.568,445.81851065]
[1770682062201,3.84287197,86.619,86.568,4.03660744]
[1770682062400,3.84287197,86.607,86.568,4.03660744]
[1770682062606,3.84287197,86.607,86.554,4.03660744]
[1770682063705,10.3983,86.606,86.554,4.03660744]
[1770682063914,3.84287197,86.605,86.554,4.03660744]
[1770682065914,3.84287197,86.599,86.531,4.03660744]
[1770682066121,3.84287197,86.599,86.541,4.03660744]
[1770682066418,3.84287197,86.599,86.537,4.03660744]
[1770682066614,3.84287197,86.589,86.541,4.03660744]
[1770682066814,3.84287197,86.589,86.551,4.03660744]
[1770682067615,3.84287197,86.602,86.561,4.03660744]
[1770682069811,3.70124835,86.599,86.561,4.03660744]
[1770682070405,10.3993,86.598,86.561,4.03660744]
[1770682070808,3.70124835,86.597,86.561,4.03660744]
[1770682071410,3.70124835,86.611,86.549,3.89028541]
[1770682071619,3.70124835,86.599,86.541,3.89028541]
[1770682072010,3.70124835,86.599,86.551,3.89028541]
[1770682073720,3.70124835,86.597,86.551,3.89028541]
[1770682074716,3.70124835,86.597,86.561,3.89028541]
[1770682075917,7.35,86.596,86.561,3.89028541]
[1770682077923,3.70124835,86.595,86.534,3.89028541]
[1770682078123,3.70124835,86.595,86.55,3.41569005]
[1770682078914,3.70124835,86.595,86.55,7.30597546]
[1770682079123,3.70124835,86.595,86.551,3.89028541]